[Event "ETCC Women 2013"]
[Site "Warsaw"]
[Date "2013.11.10"]
[Round "3"]
[White "Efroimski, Marsel"]
[Black "Dzagnidze, Nana"]
[Result "0-1"]
[ECO "B43"]
[WhiteElo "2313"]
[BlackElo "2556"]
[PlyCount "62"]
[EventDate "2013.??.??"]
[EventCountry "POL"]
[WhiteTeam "Israel"]
[BlackTeam "Georgia"]
[WhiteTeamCountry "ISR"]
[BlackTeamCountry "GEO"]
[TimeControl "40/5400+30:1800+30"]

1. e4 {[%emt 0:00:00]} c5 {[%emt 0:00:00]} 2. Nf3 {[%emt 0:00:00]} e6 {[%emt 0:
00:16]} 3. d4 {[%emt 0:00:00]} cxd4 {[%emt 0:00:06]} 4. Nxd4 {[%emt 0:00:00]}
a6 {[%emt 0:00:25]} 5. Nc3 {[%emt 0:00:00]} Qc7 {[%emt 0:00:06]} 6. Be2 {[%emt
0:00:13]} Nf6 {[%emt 0:00:33]} 7. O-O {[%emt 0:00:42]} Be7 {[%emt 0:05:41]} 8.
a4 {[%emt 0:09:04]} d6 {[%emt 0:14:09]} 9. Be3 {[%emt 0:00:16]} Nbd7 {[%emt 0:
00:06]} 10. f4 {[%emt 0:04:05]} b6 {[%emt 0:02:21]} 11. f5 {[%emt 0:20:15]} e5
{[%emt 0:07:04]} 12. Nb3 {[%emt 0:12:47]} Bb7 {[%emt 0:00:17]} 13. Bf3 {[%emt
0:03:22]} Rc8 {[%emt 0:03:34]} 14. Nd2 {[%emt 0:06:23]} O-O {[%emt 0:07:13]}
15. Qe1 {[%emt 0:05:59]} Rfe8 {[%emt 0:01:19]} 16. g4 {[%emt 0:04:22]} h6 {
[%emt 0:05:07]} 17. h4 {[%emt 0:01:49]} d5 {[%emt 0:01:33]} 18. exd5 {[%emt 0:
09:28]} e4 {[%emt 0:06:02]} 19. Bd1 {[%emt 0:07:44]} Bb4 {[%emt 0:03:48]} 20.
Bf4 {[%emt 0:03:17]} Qd8 {[%emt 0:08:12]} 21. g5 {[%emt 0:03:14]} Bxc3 {[%emt
0:03:26]} 22. bxc3 {[%emt 0:00:46]} Nxd5 {[%emt 0:02:38]} 23. gxh6 {[%emt 0:00:
25]} Nxf4 {[%emt 0:01:13]} 24. Rxf4 {[%emt 0:00:16]} Qf6 {[%emt 0:00:21]} 25.
h7+ {[%emt 0:03:37]} Kh8 {[%emt 0:01:50]} 26. Nf1 {[%emt 0:00:50]} Rxc3 {[%emt
0:02:12]} 27. Rb1 {[%emt 0:01:05]} Qe5 {[%emt 0:08:36]} 28. Qd2 {[%emt 0:02:14]
} Bc6 {[%emt 0:02:24]} 29. Ne3 {[%emt 0:01:25]} Nf6 {[%emt 0:03:02]} 30. Rf2 {
[%emt 0:00:45]} Qg3+ {[%emt 0:00:37]} 31. Ng2 {[%emt 0:00:17]} e3 {[%emt 0:00:
17]} 0-1

[Event "ETCC Women 2013"]
[Site "Warsaw"]
[Date "2013.11.10"]
[Round "3"]
[White "Fakhiridou, Ekaterini"]
[Black "Lanchava, Tea"]
[Result "0-1"]
[ECO "B06"]
[WhiteElo "2168"]
[BlackElo "2289"]
[PlyCount "108"]
[EventDate "2013.??.??"]
[EventCountry "POL"]
[WhiteTeam "Greece"]
[BlackTeam "Netherlands"]
[WhiteTeamCountry "GRE"]
[BlackTeamCountry "NED"]
[TimeControl "40/5400+30:1800+30"]

1. e4 {[%emt 0:00:00]} g6 {[%emt 0:00:00]} 2. d4 {[%emt 0:00:00]} Bg7 {[%emt 0:
00:00]} 3. Nc3 {[%emt 0:00:18]} d6 {[%emt 0:00:00]} 4. h3 {[%emt 0:01:08]} Nd7
{[%emt 0:00:26]} 5. Nf3 {[%emt 0:00:59]} a6 {[%emt 0:03:52]} 6. Bd3 {[%emt 0:
04:25]} b5 {[%emt 0:02:47]} 7. Ne2 {[%emt 0:01:50]} e5 {[%emt 0:09:00]} 8. c3 {
[%emt 0:06:32]} Ngf6 {[%emt 0:03:28]} 9. O-O {[%emt 0:03:45]} O-O {[%emt 0:04:
15]} 10. Ng3 {[%emt 0:06:19]} Bb7 {[%emt 0:05:30]} 11. Re1 {[%emt 0:07:02]} Re8
{[%emt 0:02:43]} 12. a4 {[%emt 0:14:08]} c6 {[%emt 0:06:31]} 13. Be3 {[%emt 0:
07:10]} h6 {[%emt 0:07:50]} 14. Qd2 {[%emt 0:10:58]} Kh7 {[%emt 0:00:50]} 15.
Qc2 {[%emt 0:00:13]} Qc7 {[%emt 0:02:38]} 16. dxe5 {[%emt 0:05:52]} Nxe5 {
[%emt 0:07:03]} 17. Nxe5 {[%emt 0:01:24]} dxe5 {[%emt 0:00:12]} 18. Rad1 {
[%emt 0:03:41]} c5 {[%emt 0:04:10]} 19. c4 {[%emt 0:05:47]} b4 {[%emt 0:02:46]}
20. Ne2 {[%emt 0:01:04]} Nd7 {[%emt 0:00:26]} 21. Nc1 {[%emt 0:00:29]} Nf8 {
[%emt 0:00:22]} 22. Nb3 {[%emt 0:07:38]} Ne6 {[%emt 0:00:07]} 23. Bf1 {[%emt 0:
02:01]} Qc6 {[%emt 0:02:03]} 24. Rd5 {[%emt 0:03:00]} Qc7 {[%emt 0:02:54]} 25.
Nxc5 {[%emt 0:03:21]} Bxd5 {[%emt 0:00:16]} 26. cxd5 {[%emt 0:00:01]} Nd4 {
[%emt 0:01:08]} 27. Qc1 {[%emt 0:00:29]} Rec8 {[%emt 0:02:52]} 28. Nxa6 {[%emt
0:01:23]} Qa5 {[%emt 0:02:16]} 29. Qd2 {[%emt 0:01:22]} Rxa6 {[%emt 0:11:06]}
30. Bxa6 {[%emt 0:00:02]} Qxa6 {[%emt 0:00:08]} 31. Bxd4 {[%emt 0:01:11]} exd4
{[%emt 0:00:05]} 32. e5 {[%emt 0:00:17]} Qc4 {[%emt 0:01:27]} 33. d6 {[%emt 0:
00:34]} d3 {[%emt 0:01:15]} 34. Qe3 {[%emt 0:01:44]} Qc2 {[%emt 0:02:24]} 35.
d7 {[%emt 0:00:45]} Rd8 {[%emt 0:01:16]} 36. Qd4 {[%emt 0:00:30]} d2 {[%emt 0:
00:26]} 37. Rf1 {[%emt 0:00:00]} Bxe5 {[%emt 0:00:49]} 38. Qd5 {[%emt 0:00:01]}
Bg7 {[%emt 0:01:15]} 39. b3 {[%emt 0:01:18]} Qf5 {[%emt 0:02:45]} 40. Qxd2 {
[%emt 0:00:00]} Bc3 {[%emt 0:00:00]} 41. Qe2 {[%emt 0:04:28]} Rxd7 {[%emt 0:02:
20]} 42. Rd1 {[%emt 0:02:13]} Qe6 {[%emt 0:03:07]} 43. Qc2 {[%emt 0:01:15]} Rc7
{[%emt 0:01:51]} 44. Qb1 {[%emt 0:10:19]} Be5 {[%emt 0:06:05]} 45. Re1 {[%emt
0:01:37]} Qd5 {[%emt 0:07:40]} 46. Rd1 {[%emt 0:03:10]} Qc6 {[%emt 0:03:33]}
47. Qd3 {[%emt 0:03:18]} Qc3 {[%emt 0:00:16]} 48. Qd5 {[%emt 0:00:23]} Kg7 {
[%emt 0:00:54]} 49. Qe4 {[%emt 0:06:37]} Rd7 {[%emt 0:02:47]} 50. Re1 {[%emt 0:
00:01]} Bd4 {[%emt 0:00:21]} 51. Rb1 {[%emt 0:02:08]} Qd2 {[%emt 0:01:16]} 52.
Rf1 {[%emt 0:00:54]} Rd6 {[%emt 0:00:56]} 53. Kh1 {[%emt 0:00:35]} Re6 {[%emt
0:00:35]} 54. Qb1 {[%emt 0:00:46]} Bxf2 {[%emt 0:00:45]} 0-1

[Event "ETCC Women 2013"]
[Site "Warsaw"]
[Date "2013.11.10"]
[Round "3"]
[White "Finnbogadottir, Tinna Kristin"]
[Black "De Seroux, Camille"]
[Result "1-0"]
[ECO "B00"]
[WhiteElo "1882"]
[BlackElo "2066"]
[PlyCount "57"]
[EventDate "2013.??.??"]
[EventCountry "POL"]
[WhiteTeam "Iceland"]
[BlackTeam "Switzerland"]
[WhiteTeamCountry "ISL"]
[BlackTeamCountry "SUI"]
[TimeControl "40/5400+30:1800+30"]

1. e4 {[%emt 0:00:00]} d6 {[%emt 0:00:00]} 2. d4 {[%emt 0:00:00]} g6 {[%emt 0:
00:00]} 3. Bc4 {[%emt 0:02:26]} Bg7 {[%emt 0:03:47]} 4. Nf3 {[%emt 0:02:04]}
Nf6 {[%emt 0:06:16]} 5. Qe2 {[%emt 0:05:36]} O-O {[%emt 0:04:24]} 6. h3 {[%emt
0:05:44]} c6 {[%emt 0:07:14]} 7. O-O {[%emt 0:05:44]} Qc7 {[%emt 0:06:47]} 8.
Bf4 {[%emt 0:05:11]} Nh5 {[%emt 0:03:04]} 9. Bh2 {[%emt 0:01:10]} e5 {[%emt 0:
01:03]} 10. c3 {[%emt 0:05:24]} Nd7 {[%emt 0:02:25]} 11. Na3 {[%emt 0:04:12]}
b5 {[%emt 0:03:40]} 12. Bd3 {[%emt 0:04:06]} a6 {[%emt 0:02:59]} 13. dxe5 {
[%emt 0:01:28]} dxe5 {[%emt 0:01:51]} 14. Nc2 {[%emt 0:04:30]} Nc5 {[%emt 0:03:
29]} 15. b4 {[%emt 0:05:04]} Nxd3 {[%emt 0:05:15]} 16. Qxd3 {[%emt 0:00:07]}
Be6 {[%emt 0:02:08]} 17. Ne3 {[%emt 0:02:08]} h6 {[%emt 0:05:20]} 18. c4 {
[%emt 0:05:43]} Nf4 {[%emt 0:08:38]} 19. Qc2 {[%emt 0:00:47]} f5 {[%emt 0:07:
59]} 20. Rad1 {[%emt 0:04:57]} bxc4 {[%emt 0:13:30]} 21. Nxc4 {[%emt 0:00:45]}
fxe4 {[%emt 0:01:14]} 22. Qxe4 {[%emt 0:00:25]} Bd5 {[%emt 0:01:05]} 23. Qc2 {
[%emt 0:01:05]} Nxh3+ {[%emt 0:02:26]} 24. gxh3 {[%emt 0:01:51]} Rxf3 {[%emt 0:
03:41]} 25. Ne3 {[%emt 0:04:02]} Be6 {[%emt 0:02:21]} 26. Qxg6 {[%emt 0:01:48]}
Bxh3 {[%emt 0:00:31]} 27. Ng4 {[%emt 0:02:40]} Bxf1 {[%emt 0:01:42]} 28. Bxe5 {
[%emt 0:03:55]} Kh8 {[%emt 0:00:38]} 29. Bxc7 {[%emt 0:00:23]} 1-0

[Event "ETCC Women 2013"]
[Site "Warsaw"]
[Date "2013.11.10"]
[Round "3"]
[White "Franciskovic, Borka"]
[Black "Tuominen, Tanja"]
[Result "1-0"]
[ECO "A08"]
[WhiteElo "2263"]
[BlackElo "2105"]
[PlyCount "75"]
[EventDate "2013.??.??"]
[EventCountry "POL"]
[WhiteTeam "Croatia"]
[BlackTeam "Finland"]
[WhiteTeamCountry "CRO"]
[BlackTeamCountry "FIN"]
[TimeControl "40/5400+30:1800+30"]

1. Nf3 {[%emt 0:00:00]} d5 {[%emt 0:00:00]} 2. g3 {[%emt 0:00:00]} c5 {[%emt 0:
03:55]} 3. Bg2 {[%emt 0:00:09]} Nc6 {[%emt 0:00:27]} 4. d4 {[%emt 0:00:39]}
cxd4 {[%emt 0:01:55]} 5. Nxd4 {[%emt 0:00:09]} e5 {[%emt 0:01:46]} 6. Nxc6 {
[%emt 0:01:06]} bxc6 {[%emt 0:00:05]} 7. c4 {[%emt 0:02:06]} Bb4+ {[%emt 0:09:
43]} 8. Nd2 {[%emt 0:14:05]} Ne7 {[%emt 0:13:06]} 9. cxd5 {[%emt 0:04:27]}
Bxd2+ {[%emt 0:00:49]} 10. Bxd2 {[%emt 0:05:36]} cxd5 {[%emt 0:01:20]} 11. Bb4
{[%emt 0:06:42]} Rb8 {[%emt 0:16:16]} 12. Qa4+ {[%emt 0:08:53]} Bd7 {[%emt 0:
09:13]} 13. Qa3 {[%emt 0:01:50]} Nc6 {[%emt 0:00:45]} 14. Bc5 {[%emt 0:06:37]}
Be6 {[%emt 0:01:12]} 15. O-O {[%emt 0:01:51]} Qd7 {[%emt 0:05:14]} 16. Rfd1 {
[%emt 0:04:54]} Rb5 {[%emt 0:07:43]} 17. Rac1 {[%emt 0:09:46]} f5 {[%emt 0:09:
37]} 18. e4 {[%emt 0:08:58]} fxe4 {[%emt 0:03:46]} 19. Bxe4 {[%emt 0:00:40]}
Rxc5 {[%emt 0:05:26]} 20. Rxc5 {[%emt 0:05:03]} Nd4 {[%emt 0:00:33]} 21. Bg2 {
[%emt 0:01:12]} O-O {[%emt 0:00:24]} 22. Re1 {[%emt 0:01:40]} e4 {[%emt 0:02:
24]} 23. Qc3 {[%emt 0:02:35]} Nf5 {[%emt 0:02:48]} 24. Rc7 {[%emt 0:02:41]} Qd8
{[%emt 0:02:44]} 25. Qe5 {[%emt 0:01:41]} Rf7 {[%emt 0:00:05]} 26. Rec1 {[%emt
0:02:08]} Qf6 {[%emt 0:01:04]} 27. Qxf6 {[%emt 0:00:48]} Rxf6 {[%emt 0:00:22]}
28. Rxa7 {[%emt 0:00:58]} Nd4 {[%emt 0:00:41]} 29. Rd1 {[%emt 0:00:51]} Nc6 {
[%emt 0:00:28]} 30. Rc7 {[%emt 0:01:40]} Nb4 {[%emt 0:00:26]} 31. a4 {[%emt 0:
01:03]} Nd3 {[%emt 0:00:23]} 32. Rd2 {[%emt 0:00:17]} Ne1 {[%emt 0:00:44]} 33.
a5 {[%emt 0:01:30]} Bh3 {[%emt 0:00:26]} 34. Bxe4 {[%emt 0:01:27]} dxe4 {[%emt
0:00:35]} 35. Rd8+ {[%emt 0:00:37]} Rf8 {[%emt 0:00:17]} 36. Rxf8+ {[%emt 0:00:
27]} Kxf8 {[%emt 0:00:05]} 37. a6 {[%emt 0:00:43]} Nf3+ {[%emt 0:01:09]} 38.
Kh1 {[%emt 0:00:07]} 1-0

[Event "ETCC Women 2013"]
[Site "Warsaw"]
[Date "2013.11.10"]
[Round "3"]
[White "Galojan, Lilit"]
[Black "Bartel, Marta"]
[Result "1-0"]
[ECO "A10"]
[WhiteElo "2301"]
[BlackElo "2308"]
[PlyCount "79"]
[EventDate "2013.??.??"]
[EventCountry "POL"]
[WhiteTeam "Armenia"]
[BlackTeam "Poland"]
[WhiteTeamCountry "ARM"]
[BlackTeamCountry "POL"]
[TimeControl "40/5400+30:1800+30"]

1. c4 {[%emt 0:00:00]} g6 {[%emt 0:00:00]} 2. Nf3 {[%emt 0:06:06]} Bg7 {[%emt
0:00:00]} 3. d4 {[%emt 0:04:27]} d6 {[%emt 0:01:28]} 4. Nc3 {[%emt 0:01:02]} c5
{[%emt 0:03:00]} 5. dxc5 {[%emt 0:18:36]} Bxc3+ {[%emt 0:07:09]} 6. bxc3 {
[%emt 0:00:07]} dxc5 {[%emt 0:00:07]} 7. Qxd8+ {[%emt 0:00:04]} Kxd8 {[%emt 0:
00:02]} 8. Ne5 {[%emt 0:00:07]} Ke8 {[%emt 0:13:45]} 9. g3 {[%emt 0:00:05]} Nf6
{[%emt 0:07:43]} 10. Bg2 {[%emt 0:02:27]} Nfd7 {[%emt 0:10:44]} 11. Nxd7 {
[%emt 0:27:49]} Nxd7 {[%emt 0:00:29]} 12. Be3 {[%emt 0:00:08]} Rb8 {[%emt 0:06:
07]} 13. O-O-O {[%emt 0:02:57]} f6 {[%emt 0:27:48]} 14. Rd2 {[%emt 0:09:52]}
Ne5 {[%emt 0:03:28]} 15. Bxc5 {[%emt 0:00:07]} Nxc4 {[%emt 0:00:32]} 16. Rd4 {
[%emt 0:01:57]} Be6 {[%emt 0:04:05]} 17. Rhd1 {[%emt 0:16:59]} b6 {[%emt 0:04:
07]} 18. Re4 {[%emt 0:00:18]} Kf7 {[%emt 0:06:21]} 19. Rxe6 {[%emt 0:00:34]}
Kxe6 {[%emt 0:00:09]} 20. Bd5+ {[%emt 0:00:03]} Kf5 {[%emt 0:00:11]} 21. Bxe7 {
[%emt 0:00:34]} Rhe8 {[%emt 0:00:45]} 22. e4+ {[%emt 0:00:21]} Kg5 {[%emt 0:01:
05]} 23. h4+ {[%emt 0:00:23]} Kh6 {[%emt 0:01:20]} 24. Bxf6 {[%emt 0:00:15]}
Ne5 {[%emt 0:00:52]} 25. f4 {[%emt 0:02:46]} Ng4 {[%emt 0:00:27]} 26. Bd4 {
[%emt 0:00:12]} Rbd8 {[%emt 0:00:37]} 27. Kc2 {[%emt 0:04:36]} Rf8 {[%emt 0:00:
06]} 28. Kd3 {[%emt 0:00:17]} Nf6 {[%emt 0:00:50]} 29. Bxf6 {[%emt 0:00:23]}
Rxf6 {[%emt 0:00:03]} 30. c4 {[%emt 0:00:13]} Rff8 {[%emt 0:00:26]} 31. e5 {
[%emt 0:00:18]} Rfe8 {[%emt 0:00:17]} 32. Ke4 {[%emt 0:00:26]} Kg7 {[%emt 0:00:
22]} 33. g4 {[%emt 0:00:12]} Kf8 {[%emt 0:00:53]} 34. f5 {[%emt 0:00:46]} Kg7 {
[%emt 0:00:28]} 35. f6+ {[%emt 0:00:22]} Kf8 {[%emt 0:00:01]} 36. g5 {[%emt 0:
00:10]} Rd7 {[%emt 0:00:33]} 37. h5 {[%emt 0:00:55]} gxh5 {[%emt 0:00:57]} 38.
Kf5 {[%emt 0:01:14]} Rc8 {[%emt 0:00:47]} 39. e6 {[%emt 0:00:11]} Rdc7 {[%emt
0:00:22]} 40. Re1 {[%emt 0:00:00]} 1-0

[Event "ETCC Women 2013"]
[Site "Warsaw"]
[Date "2013.11.10"]
[Round "3"]
[White "Goossens, Hanne"]
[Black "Daulyte, Deimante"]
[Result "0-1"]
[ECO "B01"]
[WhiteElo "2069"]
[BlackElo "2336"]
[PlyCount "78"]
[EventDate "2013.??.??"]
[EventCountry "POL"]
[WhiteTeam "Belgium"]
[BlackTeam "Lithuania"]
[WhiteTeamCountry "BEL"]
[BlackTeamCountry "LTU"]
[TimeControl "40/5400+30:1800+30"]

1. e4 {[%emt 0:00:00]} d5 {[%emt 0:00:00]} 2. exd5 {[%emt 0:00:00]} Qxd5 {
[%emt 0:00:00]} 3. Nc3 {[%emt 0:00:08]} Qa5 {[%emt 0:00:00]} 4. d4 {[%emt 0:00:
31]} Nf6 {[%emt 0:00:03]} 5. Nf3 {[%emt 0:00:34]} Bf5 {[%emt 0:00:58]} 6. Bc4 {
[%emt 0:00:14]} e6 {[%emt 0:00:24]} 7. Bd2 {[%emt 0:00:41]} Bb4 {[%emt 0:01:24]
} 8. a3 {[%emt 0:02:30]} Bxc3 {[%emt 0:00:54]} 9. Bxc3 {[%emt 0:02:14]} Qb6 {
[%emt 0:00:06]} 10. O-O {[%emt 0:02:15]} Nc6 {[%emt 0:05:34]} 11. Qe2 {[%emt 0:
10:06]} O-O {[%emt 0:02:09]} 12. b4 {[%emt 0:11:35]} Rfd8 {[%emt 0:27:49]} 13.
Rfd1 {[%emt 0:08:12]} Ne7 {[%emt 0:11:50]} 14. Bb3 {[%emt 0:08:34]} Bg4 {[%emt
0:05:50]} 15. Qd3 {[%emt 0:10:42]} Nf5 {[%emt 0:02:19]} 16. h3 {[%emt 0:04:47]}
Bxf3 {[%emt 0:00:29]} 17. Qxf3 {[%emt 0:00:10]} Nxd4 {[%emt 0:01:03]} 18. Bxd4
{[%emt 0:00:33]} Rxd4 {[%emt 0:00:07]} 19. Rxd4 {[%emt 0:00:14]} Qxd4 {[%emt 0:
00:09]} 20. Rd1 {[%emt 0:00:20]} Qe4 {[%emt 0:03:39]} 21. Qc3 {[%emt 0:02:03]}
c6 {[%emt 0:01:28]} 22. Rd4 {[%emt 0:03:26]} Qf5 {[%emt 0:03:22]} 23. Qd2 {
[%emt 0:02:46]} Rf8 {[%emt 0:06:21]} 24. Rd8 {[%emt 0:07:09]} Nd5 {[%emt 0:01:
37]} 25. Rxf8+ {[%emt 0:00:08]} Kxf8 {[%emt 0:00:04]} 26. c4 {[%emt 0:00:14]}
Qf4 {[%emt 0:01:02]} 27. Qd3 {[%emt 0:05:41]} Nf6 {[%emt 0:00:23]} 28. Bd1 {
[%emt 0:02:55]} Ke7 {[%emt 0:04:06]} 29. Bf3 {[%emt 0:00:59]} e5 {[%emt 0:04:
44]} 30. Be2 {[%emt 0:03:33]} Ne4 {[%emt 0:01:54]} 31. Bf3 {[%emt 0:02:27]}
Qc1+ {[%emt 0:00:27]} 32. Qd1 {[%emt 0:01:01]} Qxd1+ {[%emt 0:05:43]} 33. Bxd1
{[%emt 0:00:05]} Nd2 {[%emt 0:00:23]} 34. Be2 {[%emt 0:01:07]} Nb1 {[%emt 0:00:
37]} 35. f3 {[%emt 0:01:37]} Nxa3 {[%emt 0:01:29]} 36. Bd3 {[%emt 0:01:07]} h6
{[%emt 0:04:42]} 37. Kf2 {[%emt 0:01:28]} Kd6 {[%emt 0:00:26]} 38. Ke3 {[%emt
0:00:26]} a5 {[%emt 0:01:00]} 39. b5 {[%emt 0:04:06]} Kc5 {[%emt 0:00:51]} 0-1

[Event "ETCC Women 2013"]
[Site "Warsaw"]
[Date "2013.11.10"]
[Round "3"]
[White "Grigoryan, Meri"]
[Black "Olsarova, Tereza"]
[Result "0-1"]
[ECO "A43"]
[WhiteElo "2039"]
[BlackElo "2248"]
[PlyCount "102"]
[EventDate "2013.??.??"]
[EventCountry "POL"]
[WhiteTeam "England"]
[BlackTeam "Czech Republic"]
[WhiteTeamCountry "ENG"]
[BlackTeamCountry "CZE"]
[TimeControl "40/5400+30:1800+30"]

1. d4 {[%emt 0:00:00]} c5 2. e4 {[%emt 0:03:03]} cxd4 {[%emt 0:00:43]} 3. Qxd4
{[%emt 0:01:45]} Nc6 {[%emt 0:00:40]} 4. Qa4 {[%emt 0:00:36]} Nf6 {[%emt 0:05:
19]} 5. Nc3 {[%emt 0:06:11]} g6 {[%emt 0:08:58]} 6. f4 {[%emt 0:08:21]} d6 {
[%emt 0:03:36]} 7. Nf3 {[%emt 0:02:05]} Bg7 {[%emt 0:00:56]} 8. Bc4 {[%emt 0:
05:24]} O-O {[%emt 0:01:24]} 9. Bd2 {[%emt 0:07:20]} Nd7 {[%emt 0:02:48]} 10.
Qa3 {[%emt 0:04:41]} Rb8 {[%emt 0:02:43]} 11. Nd1 {[%emt 0:22:12]} Nc5 {[%emt
0:08:59]} 12. Qe3 {[%emt 0:02:03]} e6 {[%emt 0:05:06]} 13. Bc3 {[%emt 0:03:29]}
b5 {[%emt 0:06:37]} 14. Bxg7 {[%emt 0:02:00]} Kxg7 {[%emt 0:00:03]} 15. Be2 {
[%emt 0:01:05]} Qb6 {[%emt 0:00:41]} 16. h4 {[%emt 0:03:44]} Kg8 {[%emt 0:06:
40]} 17. h5 {[%emt 0:00:48]} Nb4 {[%emt 0:01:23]} 18. Qc3 {[%emt 0:07:04]} Qa5
{[%emt 0:01:33]} 19. Nd2 {[%emt 0:08:15]} Na4 {[%emt 0:04:41]} 20. Qb3 {[%emt
0:04:00]} Nc6 {[%emt 0:01:19]} 21. Qh3 {[%emt 0:03:27]} Rb7 {[%emt 0:01:52]}
22. c3 {[%emt 0:01:13]} Qc7 {[%emt 0:02:50]} 23. Nf3 {[%emt 0:00:56]} Qe7 {
[%emt 0:03:38]} 24. Ng5 {[%emt 0:01:13]} e5 {[%emt 0:00:23]} 25. Qh2 {[%emt 0:
01:01]} f6 {[%emt 0:05:42]} 26. Nf3 {[%emt 0:00:01]} g5 {[%emt 0:01:54]} 27. f5
{[%emt 0:00:26]} h6 {[%emt 0:01:31]} 28. g4 {[%emt 0:00:33]} Qf7 {[%emt 0:03:
27]} 29. Nd2 {[%emt 0:00:56]} Kg7 {[%emt 0:02:05]} 30. Qg2 {[%emt 0:00:16]} a6
{[%emt 0:00:54]} 31. b3 {[%emt 0:00:11]} Nb6 {[%emt 0:00:51]} 32. Ne3 {[%emt 0:
00:24]} Ne7 {[%emt 0:02:10]} 33. Bf3 {[%emt 0:00:08]} Rd7 {[%emt 0:00:23]} 34.
c4 {[%emt 0:00:18]} Nc6 {[%emt 0:00:29]} 35. cxb5 {[%emt 0:01:07]} axb5 {[%emt
0:00:16]} 36. O-O {[%emt 0:00:31]} Nd4 {[%emt 0:00:38]} 37. Nd5 {[%emt 0:00:42]
} Nxd5 {[%emt 0:01:24]} 38. exd5 {[%emt 0:00:05]} Nc2 {[%emt 0:03:38]} 39. Rac1
{[%emt 0:01:00]} Ne3 {[%emt 0:00:02]} 40. Qe2 {[%emt 0:00:00]} Nxf1 {[%emt 0:
00:00]} 41. Qxf1 {[%emt 0:02:04]} Rc7 {[%emt 0:02:32]} 42. Ne4 {[%emt 0:15:40]}
Rxc1 {[%emt 0:05:30]} 43. Qxc1 {[%emt 0:00:01]} Qa7+ {[%emt 0:00:04]} 44. Kh1 {
[%emt 0:00:47]} Qb6 {[%emt 0:00:06]} 45. Qc6 {[%emt 0:03:19]} Qxc6 {[%emt 0:00:
59]} 46. dxc6 {[%emt 0:00:01]} d5 {[%emt 0:07:48]} 47. Nc5 {[%emt 0:01:55]} e4
{[%emt 0:01:48]} 48. Be2 {[%emt 0:00:14]} b4 {[%emt 0:00:13]} 49. Kg1 {[%emt 0:
08:59]} Re8 {[%emt 0:02:57]} 50. Bb5 {[%emt 0:02:15]} d4 {[%emt 0:01:45]} 51.
Kf2 {[%emt 0:00:41]} Re5 {[%emt 0:01:07]} 0-1

[Event "ETCC Women 2013"]
[Site "Warsaw"]
[Date "2013.11.10"]
[Round "3"]
[White "Gronnestad, Anita"]
[Black "Brunello, Marina"]
[Result "1-0"]
[ECO "A11"]
[WhiteElo "1958"]
[BlackElo "2248"]
[PlyCount "93"]
[EventDate "2013.??.??"]
[EventCountry "POL"]
[WhiteTeam "Norway"]
[BlackTeam "Italy"]
[WhiteTeamCountry "NOR"]
[BlackTeamCountry "ITA"]
[TimeControl "40/5400+30:1800+30"]

1. c4 {[%emt 0:00:00]} c6 {[%emt 0:00:00]} 2. Nf3 {[%emt 0:00:00]} d5 {[%emt 0:
00:00]} 3. e3 {[%emt 0:00:07]} Nf6 {[%emt 0:00:00]} 4. b3 {[%emt 0:00:18]} Bf5
{[%emt 0:00:09]} 5. Bb2 {[%emt 0:00:46]} e6 {[%emt 0:00:52]} 6. Be2 {[%emt 0:
03:25]} h6 {[%emt 0:01:09]} 7. O-O {[%emt 0:00:42]} Nbd7 {[%emt 0:00:25]} 8. d4
{[%emt 0:00:53]} Bd6 {[%emt 0:03:24]} 9. Nbd2 {[%emt 0:03:59]} Qc7 {[%emt 0:01:
42]} 10. Rc1 {[%emt 0:04:30]} O-O {[%emt 0:03:47]} 11. a3 {[%emt 0:02:48]} a5 {
[%emt 0:03:32]} 12. Re1 {[%emt 0:03:42]} Rad8 {[%emt 0:12:00]} 13. Bf1 {[%emt
0:18:07]} Rfe8 {[%emt 0:04:31]} 14. g3 {[%emt 0:02:04]} Qb8 {[%emt 0:01:00]}
15. Bg2 {[%emt 0:07:13]} Bh7 {[%emt 0:01:08]} 16. cxd5 {[%emt 0:14:40]} exd5 {
[%emt 0:01:39]} 17. Nb1 {[%emt 0:00:48]} Ne4 {[%emt 0:06:35]} 18. Nfd2 {[%emt
0:01:12]} Ng5 {[%emt 0:04:17]} 19. Nc3 {[%emt 0:03:21]} Nf6 {[%emt 0:01:38]}
20. Na4 {[%emt 0:03:43]} Bf5 {[%emt 0:03:34]} 21. Qe2 {[%emt 0:18:35]} h5 {
[%emt 0:05:21]} 22. Nf1 {[%emt 0:04:37]} Nh3+ {[%emt 0:03:39]} 23. Bxh3 {[%emt
0:02:05]} Bxh3 {[%emt 0:00:11]} 24. Nc5 {[%emt 0:00:16]} Ng4 {[%emt 0:05:49]}
25. b4 {[%emt 0:01:19]} axb4 {[%emt 0:00:12]} 26. axb4 {[%emt 0:00:02]} h4 {
[%emt 0:01:26]} 27. Rc2 {[%emt 0:01:45]} b6 {[%emt 0:05:30]} 28. Nd3 {[%emt 0:
00:53]} Re6 {[%emt 0:00:08]} 29. Qf3 {[%emt 0:01:45]} Rh6 {[%emt 0:07:07]} 30.
Nf4 {[%emt 0:00:38]} Bxf4 {[%emt 0:04:04]} 31. exf4 {[%emt 0:00:04]} Qd6 {
[%emt 0:01:58]} 32. Ne3 {[%emt 0:01:01]} Qg6 {[%emt 0:03:02]} 33. f5 {[%emt 0:
00:27]} Qg5 {[%emt 0:02:14]} 34. Bc1 {[%emt 0:00:31]} hxg3 {[%emt 0:05:02]} 35.
fxg3 {[%emt 0:00:13]} Qh5 {[%emt 0:00:46]} 36. Nf1 {[%emt 0:00:48]} Rf6 {[%emt
0:00:54]} 37. Ne3 {[%emt 0:00:17]} Re8 {[%emt 0:00:41]} 38. Rce2 {[%emt 0:00:
03]} Re4 {[%emt 0:00:08]} 39. b5 {[%emt 0:00:10]} Qh7 40. bxc6 {[%emt 0:00:00]}
Nxe3 {[%emt 0:00:00]} 41. Rxe3 {[%emt 0:08:00]} Bxf5 {[%emt 0:10:13]} 42. c7 {
[%emt 0:12:50]} Rc6 {[%emt 0:10:19]} 43. Rxe4 {[%emt 0:04:12]} Bxe4 {[%emt 0:
00:21]} 44. Qa3 {[%emt 0:00:24]} Qh3 {[%emt 0:07:40]} 45. Rxe4 {[%emt 0:00:20]}
Rxc7 {[%emt 0:00:12]} 46. Qa8+ {[%emt 0:01:15]} Rc8 {[%emt 0:00:13]} 47. Re8+ {
[%emt 0:00:28]} 1-0